bitfinex-derivatives/quotes_ETHF0:USTF0_20250123
["timestamp","ask_amount","ask_price","bid_price","bid_amount"]
[1737628475098,1.78961139,3209.6,3209.5,0.00466852]
[1737628475798,9.1362062,3209.6,3209.5,0.00466852]
[1737628476497,14.1362062,3209.6,3209.5,0.00259333]
[1737628476693,13.5127462,3209.6,3208.7,3.2078]
[1737628476890,0.62362,3208.8,3208.7,3.2078]
[1737628478099,3.98165141,3208.8,3208.4,0.00466852]
[1737628478297,0.62368,3208.5,3208.4,0.00466852]
[1737628478799,4.65158244,3208.5,3208.4,0.00466852]
[1737628479002,9.65158244,3208.5,3208.4,8.52e-06]
[1737628479400,4.65158244,3208.5,3208.4,8.52e-06]
[1737628484305,0.62368,3208.5,3208.4,8.52e-06]
[1737628484806,0.62368,3208.5,3208.4,40.80000852]
[1737628485506,0.62366,3208.6,3208.4,40.80000852]
[1737628485805,0.62365,3208.6,3208.5,0.5073]
[1737628487700,0.62365,3208.6,3208.4,41.31730852]
[1737628487701,0.62367,3208.5,3208.4,8.52e-06]
[1737628489206,4.67724474,3208.5,3208.4,8.52e-06]
[1737628490301,0.62361,3208.7,3208.4,8.52e-06]
[1737628490497,0.62365,3208.5,3208.4,8.52e-06]
[1737628491503,0.62365,3208.5,3208.4,0.50570852]
[1737628491706,0.62363,3208.6,3208.4,0.50570852]
[1737628491903,0.62365,3208.5,3208.4,0.50570852]
[1737628493910,0.62365,3208.5,3208.4,8.52e-06]
[1737628504411,0.62358,3209.0,3208.4,3.20780852]
[1737628504606,3.2078,3209.2,3208.6,0.62365]
[1737628504807,3.2078,3209.2,3208.7,0.62361]
[1737628505019,0.62365,3208.6,3208.5,0.5129]
[1737628505922,1.4951,3208.8,3208.4,3.20780852]
[1737628506121,0.62367,3208.5,3208.4,3.20780852]
[1737628508221,0.62363,3208.5,3208.4,3.20780852]
[1737628508719,1.4951,3208.8,3208.4,3.20780852]
[1737628508911,2.11868,3208.8,3208.5,1.13792]
[1737628509109,3.2078,3209.2,3208.5,0.5143]
[1737628509316,0.62356,3208.9,3208.6,1.13709]
[1737628509512,5.08353633,3209.1,3208.6,0.5135]
[1737628509716,0.62359,3208.7,3208.6,0.5135]
[1737628510816,0.9932,3209.1,3208.6,0.5135]
[1737628511017,0.62358,3208.8,3208.6,1.13711]
[1737628511217,0.62357,3208.9,3208.6,1.13711]
[1737628511624,0.9932,3209.1,3208.6,1.13711]
[1737628511822,0.62355,3209.0,3208.6,0.5135]
[1737628512125,0.62357,3208.9,3208.6,0.5135]
[1737628512326,0.62357,3208.9,3208.7,0.62359]
[1737628512826,0.62355,3209.0,3208.7,0.62359]
[1737628513022,0.9932,3209.1,3208.6,0.5135]
[1737628513023,0.9932,3209.1,3208.8,3.2078]
[1737628513219,0.6235,3209.2,3209.0,0.62353]
[1737628513420,0.6235,3209.2,3209.1,0.5099]
[1737628514024,0.6235,3209.2,3209.1,41.3099]
[1737628514221,1.0023,3209.5,3209.1,40.8]
[1737628514427,0.6236,3208.9,3208.8,3.2078]
[1737628514919,1.0023,3209.5,3208.4,3.20780852]
[1737628514920,2.46532287,3209.0,3208.4,3.20780852]
[1737628515121,0.62368,3208.5,3208.4,3.20780852]
[1737628515831,0.62368,3208.5,3208.4,8.52e-06]
[1737628516225,4.70325686,3208.5,3208.4,8.52e-06]
[1737628516432,4.70325686,3208.5,3207.9,3.2078]
[1737628516433,0.62376,3208.0,3207.9,3.2078]
[1737628516619,0.62387,3207.5,3207.2,3.6893]
[1737628516831,1.498,3207.9,3207.3,40.8]
[1737628517025,0.62387,3207.5,3207.3,40.8]
[1737628517226,3.9645296,3207.8,3207.3,40.8]
[1737628517426,0.62388,3207.4,3207.3,40.8]
[1737628517823,0.62388,3207.4,3207.3,40.83199134]
[1737628520625,0.62387,3207.5,3207.3,40.83199134]
[1737628520823,0.62387,3207.5,3207.4,0.03199134]
[1737628521036,1.50267588,3207.9,3207.4,0.03199134]
[1737628521037,0.62385,3207.6,3207.4,0.03199134]
[1737628521224,0.62385,3207.6,3207.5,0.4944]
[1737628521825,0.62385,3207.6,3207.5,41.2944]
[1737628522031,0.62385,3207.6,3207.5,41.32639134]
[1737628523629,0.62385,3207.6,3207.5,40.83199134]
[1737628524028,0.62385,3207.6,3207.5,40.83320334]
[1737628524628,0.62385,3207.6,3207.5,0.03320334]
[1737628526635,4.73141318,3207.6,3207.5,0.03320334]
[1737628527637,4.73141318,3207.6,3207.2,0.00467588]
[1737628527638,12.93921318,3207.6,3207.2,0.00467588]
[1737628527933,0.6239,3207.3,3207.2,0.00467588]
[1737628529630,0.6239,3207.3,3207.2,0.04614727]
[1737628530430,4.62615512,3207.3,3207.2,0.04614727]
[1737628533445,4.76745,3207.6,3207.2,0.04614727]
[1737628533446,4.7618,3207.6,3207.2,0.04614727]
[1737628533737,0.58242861,3207.3,3207.2,0.00467588]
[1737628534937,0.6239,3207.4,3207.2,0.00467588]
[1737628535138,0.6239,3207.3,3207.2,0.00467588]
[1737628535539,0.6239,3207.3,3207.2,0.04732225]
[1737628537643,3.2078,3207.6,3207.2,0.04732225]
[1737628537844,0.6239,3207.3,3207.2,0.04732225]
[1737628538442,3.2078,3207.6,3207.2,0.04732225]
[1737628538743,0.6239,3207.3,3207.2,0.04732225]
[1737628539951,4.6576265,3207.3,3207.2,0.04732225]
[1737628540856,0.62396,3207.0,3206.9,3.2078]
[1737628541058,0.62396,3207.0,3206.9,3.25044602]
[1737628541256,4.76099953,3207.0,3206.9,3.25044602]
[1737628542660,4.76099953,3207.0,3206.9,0.04264602]
[1737628543156,0.62402,3206.7,3206.6,3.21247588]
[1737628543658,6.15097345,3206.7,3206.6,0.00467588]
[1737628543861,11.15097345,3206.7,3206.6,5.88e-06]
[1737628544063,12.16167345,3206.7,3206.6,5.88e-06]
[1737628545663,7.16167345,3206.7,3206.6,5.88e-06]
[1737628546366,7.68937345,3206.7,3206.6,5.88e-06]
[1737628551766,12.68937345,3206.7,3206.6,5.88e-06]
[1737628552273,0.62425,3205.5,3205.4,0.002]
[1737628552575,0.62427,3205.4,3205.3,1.0008]
[1737628553160,4.75369731,3205.4,3205.3,1.0008]
[1737628553364,4.75369731,3205.4,3204.8,1.014]
[1737628553365,0.62437,3204.9,3204.8,1.014]
[1737628553561,3.83217,3204.9,3204.8,1.014]
[1737628553769,0.62448,3204.4,3204.2,3.99056409]
[1737628553971,0.62448,3204.4,3204.3,0.5061]
[1737628554166,3.2078,3204.9,3204.3,0.5061]
[1737628554376,3.2078,3204.9,3204.0,0.00312222]
[1737628554377,0.62452,3204.1,3204.0,0.00312222]
[1737628554772,3.2078,3204.5,3204.0,0.62765222]
[1737628554773,0.62446,3204.5,3204.0,0.62765222]
[1737628555079,0.62446,3204.5,3204.1,40.8]
[1737628555573,3.6984,3204.9,3204.1,40.8]
[1737628555574,0.62447,3204.4,3204.1,41.2893]
[1737628556673,3.6984,3204.9,3204.1,41.2893]
[1737628556875,0.62448,3204.4,3204.1,41.2893]
[1737628557176,0.62452,3204.1,3204.0,0.00312222]
[1737628559272,0.6245,3204.3,3204.0,0.62765222]
[1737628559579,0.6245,3204.2,3204.0,0.00312222]
[1737628560478,0.62452,3204.1,3204.0,0.00312222]
[1737628560677,1.554,3204.7,3204.0,0.00312222]
[1737628560879,0.6245,3204.3,3204.1,0.62452]
[1737628561175,0.6245,3204.3,3204.0,0.62766222]
[1737628561677,0.62452,3204.1,3204.0,0.00312222]
[1737628562270,1.554,3204.7,3204.0,0.00312222]
[1737628562469,0.62448,3204.3,3204.1,0.6245]
[1737628562682,4.12106708,3204.6,3204.0,0.00312222]
[1737628562881,3.11499,3204.7,3204.0,0.00312222]
[1737628563181,3.83231,3204.1,3204.0,0.00312222]
[1737628563480,0.62451,3204.1,3204.0,0.00312222]
[1737628563778,4.75663623,3204.1,3204.0,0.00312222]
[1737628564778,4.75663623,3204.1,3204.0,40.80312222]
[1737628567069,3.2078,3204.5,3204.0,40.80312222]
[1737628567275,0.62445,3204.4,3204.1,1.12529]
[1737628567481,4.00866359,3204.4,3204.3,0.62447]
[1737628567685,3.2078,3204.9,3204.3,2.46532287]
[1737628567878,3.2078,3204.9,3204.6,0.6244]
[1737628568079,4.71541111,3204.8,3204.7,0.5008]
[1737628568275,4.09103111,3204.8,3204.7,0.5008]
[1737628568478,1.555,3205.2,3204.7,0.5008]
[1737628568677,1.555,3205.2,3205.1,0.62432]
[1737628568878,1.555,3205.2,3205.0,0.62433]
[1737628569184,1.555,3205.2,3205.1,0.62432]
[1737628569575,1.555,3205.2,3204.7,0.9959]
[1737628569779,1.555,3205.2,3205.0,0.62433]
[1737628570082,1.555,3205.2,3205.1,0.62432]
[1737628570474,1.555,3205.2,3205.0,0.62433]
[1737628571076,1.555,3205.2,3205.1,40.8]
[1737628572287,2.17931,3205.2,3205.1,40.8]
[1737628572787,1.555,3205.2,3204.7,0.9959]
[1737628572985,1.555,3205.2,3205.0,0.62434]
[1737628573376,1.555,3205.2,3205.1,40.8]
[1737628573583,2.17931,3205.2,3205.1,40.8]
[1737628573984,2.17931,3205.2,3204.9,0.62436]
[1737628574490,2.17931,3205.2,3204.9,41.42436]
[1737628574679,1.555,3205.2,3204.9,41.42437]
[1737628574882,1.555,3205.2,3204.7,0.9959]
[1737628575078,4.1451943,3205.1,3204.7,0.5008]
[1737628575389,0.62442,3204.7,3204.6,3.2078]
[1737628575782,4.7696143,3204.7,3204.6,3.2078]
[1737628577380,0.5012,3204.9,3204.6,3.2078]
[1737628577381,0.62438,3204.9,3204.6,3.83223]
[1737628578396,0.5176,3205.1,3204.6,3.2078]
[1737628578794,0.62442,3204.8,3204.6,3.2078]
[1737628580497,0.62439,3204.9,3204.6,3.2078]
[1737628580712,0.62437,3205.0,3204.7,0.62441]
[1737628580899,0.62438,3204.9,3204.8,41.2918]
[1737628581102,1.555,3205.2,3204.8,41.2918]
[1737628581410,1.555,3205.2,3205.0,0.62435]
[1737628581607,0.62431,3205.3,3205.0,0.62435]
[1737628581909,0.62432,3205.3,3205.0,0.62436]
[1737628582099,0.62432,3205.2,3204.9,1.64307]
[1737628582304,3.2078,3205.4,3204.9,1.0187]
[1737628582608,0.62431,3205.3,3205.0,0.62435]
[1737628582805,3.2078,3205.4,3204.9,1.0187]
[1737628583005,3.8321,3205.4,3205.0,0.62434]
[1737628583205,3.8321,3205.4,3204.9,3.48402287]
[1737628583406,0.6243,3205.4,3205.1,0.62434]
[1737628583910,0.00467588,3205.7,3205.0,3.2078]
[1737628584107,0.62431,3205.3,3205.0,3.2078]
[1737628584307,0.62431,3205.3,3205.1,0.62434]
[1737628584511,0.62890588,3205.7,3205.4,0.62427]
[1737628584710,0.62890588,3205.7,3205.5,0.5079]
[1737628585415,0.00467588,3205.7,3205.5,1.13216]
[1737628585714,0.62424,3205.6,3205.5,0.5079]
[1737628585908,0.62891588,3205.7,3205.5,0.5079]
[1737628586411,0.00467588,3205.7,3205.5,0.5079]
[1737628586711,0.00467588,3205.7,3205.5,1.13215]
[1737628587514,0.62890588,3205.7,3205.6,0.51]
[1737628587700,0.00467588,3205.7,3205.6,1.13424]
[1737628587906,0.00467588,3205.7,3205.6,0.51]
[1737628588810,0.62890588,3205.7,3205.6,0.51]
[1737628589309,0.62890588,3205.7,3205.6,41.31]
[1737628589506,0.00467588,3205.7,3205.6,41.31]
[1737628590001,0.00467588,3205.7,3205.6,0.51]
[1737628590205,0.62890588,3205.7,3205.6,0.51]
[1737628590607,0.00467588,3205.7,3205.6,0.51]
[1737628590809,0.00467588,3205.7,3205.6,1.13425]
[1737628591505,0.00467588,3205.7,3205.6,0.51]
[1737628592303,0.00467588,3205.7,3205.6,1.13425]
[1737628593007,0.00467588,3205.7,3205.6,0.51]
[1737628593215,0.00467588,3205.7,3205.6,1.13425]
[1737628594618,0.00467588,3205.7,3205.6,1.61085]
[1737628596221,0.00467588,3205.7,3205.6,1.65358212]
[1737628597013,0.62890588,3205.7,3205.6,0.55273212]
[1737628597216,0.62890588,3205.7,3205.6,0.04273212]
[1737628599119,0.00467588,3205.7,3205.6,0.04273212]
[1737628599316,0.00467588,3205.7,3205.6,1.67928212]
[1737628601024,0.62890588,3205.7,3205.6,1.67928212]
[1737628601524,0.62890588,3205.7,3205.6,0.55763212]
[1737628601922,0.62890588,3205.7,3205.6,0.58914054]
[1737628602326,0.62890588,3205.7,3205.6,1.21339054]
[1737628603210,0.62890588,3205.7,3205.6,0.07424054]
[1737628604413,7.1908741,3205.7,3205.6,0.07424054]
[1737628604613,7.1908741,3205.7,3205.6,0.04135489]
[1737628605227,5.20285123,3205.7,3205.6,0.04135489]
[1737628606619,1.10620588,3205.7,3205.6,0.04135489]
[1737628614429,1.60880588,3205.7,3205.6,0.04135489]
[1737628618327,0.00467588,3205.7,3205.6,0.66559489]
[1737628618722,0.62890588,3205.7,3205.6,0.04135489]
[1737628619127,0.62890588,3205.7,3205.6,0.04306227]
[1737628624836,0.62890588,3205.7,3205.6,0.66730227]
[1737628625135,0.62890588,3205.7,3205.6,0.04306227]
[1737628625339,0.62890588,3205.7,3205.6,0.66730227]
[1737628627236,0.62890588,3205.7,3205.6,0.04306227]
[1737628628340,0.62890588,3205.7,3205.6,0.02411109]
[1737628634341,0.00467588,3205.7,3205.6,0.64836109]
[1737628634739,0.00467588,3205.7,3205.6,41.44836109]
[1737628638749,3.2078,3207.0,3205.6,45.82411109]
[1737628638946,2.08382,3206.8,3206.6,0.62404]
[1737628639144,1.4598,3206.8,3206.7,0.02240371]
[1737628639448,0.62404,3206.7,3206.5,0.62406]
[1737628639748,0.62405,3206.6,3206.4,3.81431012]
[1737628639944,0.62405,3206.6,3206.4,3.19023012]
[1737628640341,1.4598,3206.8,3206.5,40.8]
[1737628640545,0.62404,3206.7,3206.5,40.8]
[1737628640746,0.62404,3206.7,3206.5,41.42406]
[1737628641246,1.4598,3206.8,3206.5,41.42406]
[1737628641447,1.4598,3206.8,3206.6,0.62404]
[1737628641649,0.00467588,3206.9,3206.6,2.46532287]
[1737628641841,0.00467588,3206.9,3206.8,0.62401]
[1737628643353,0.00467588,3206.9,3206.7,1.0093]
[1737628643546,0.62866588,3206.9,3206.8,0.62401]
[1737628643857,0.624,3206.8,3206.7,1.63332]
[1737628644049,0.00467588,3206.9,3206.5,40.8]
[1737628644251,0.62403,3206.7,3206.5,41.42405]
[1737628644548,0.62402,3206.7,3206.5,41.42405]
[1737628644749,1.0337,3206.8,3206.5,40.8]
[1737628644951,0.62404,3206.6,3206.5,40.8]
[1737628645150,0.62406,3206.5,3206.4,3.19023012]
[1737628645748,0.62406,3206.5,3206.4,43.99023012]
[1737628647250,1.5506,3206.8,3206.4,43.99023012]
[1737628647454,1.5506,3206.8,3206.6,2.46532287]
[1737628647750,0.00467588,3206.9,3206.6,2.46532287]
[1737628647950,0.62402,3206.8,3206.7,0.62401]
[1737628648350,0.00467588,3206.9,3206.6,2.46532287]
[1737628648749,0.62402,3206.8,3206.7,0.62401]
[1737628648956,0.62402,3206.8,3206.7,3.83181]
[1737628649150,0.62866588,3206.9,3206.8,0.624]
[1737628650960,0.624,3206.8,3206.7,3.2078]
[1737628651460,0.62408,3206.4,3206.3,3.83657588]
[1737628652159,0.62404,3206.7,3206.6,0.62403]
[1737628652864,1.00207588,3206.9,3206.6,40.8]
[1737628653058,0.62401,3206.8,3206.7,0.62401]
[1737628653257,0.62401,3206.8,3206.7,3.2078]
[1737628655657,0.00467588,3206.9,3206.8,0.624]
[1737628656058,2.10862,3207.3,3206.7,4.7626]
[1737628656363,0.62393,3207.2,3207.0,0.62395]
[1737628656563,0.62396,3207.1,3206.8,0.624]
[1737628656761,0.62397,3207.0,3206.7,4.86501]
[1737628657354,0.00467588,3207.2,3206.7,4.86501]
[1737628657553,0.624,3206.8,3206.7,3.2078]
[1737628657953,1.1137,3206.8,3206.7,3.2078]
[1737628659057,4.59857024,3206.8,3206.4,40.8]
[1737628659264,0.62406,3206.5,3206.4,40.8]
[1737628659462,0.62408,3206.4,3206.3,3.21247588]
[1737628659765,3.08940287,3206.4,3206.3,0.00467588]
[1737628661159,3.08940287,3206.4,3206.3,0.00280312]
[1737628661359,0.6242,3205.8,3205.7,3.2078]
[1737628665261,0.62422,3205.7,3205.6,40.80170738]
[1737628667071,0.62422,3205.7,3205.6,0.00170738]
[1737628671973,4.63895218,3205.7,3205.6,0.00170738]
[1737628673666,0.62422,3205.7,3205.6,0.00170738]
[1737628676369,4.67485434,3205.7,3205.6,7.38e-06]
[1737628676982,9.67485434,3205.7,3205.6,7.38e-06]
[1737628677173,4.67485434,3205.7,3205.6,7.38e-06]
[1737628681177,0.62425,3205.5,3205.4,3.26e-06]
[1737628681380,4.63757287,3205.5,3205.4,3.26e-06]
[1737628681589,8.61587222,3205.5,3205.4,3.26e-06]
[1737628681792,8.61587222,3205.5,3204.9,44.0078]
[1737628681793,0.62435,3205.0,3204.9,44.0078]
[1737628684395,0.00467588,3205.3,3204.9,45.0159]
[1737628684791,0.62435,3205.0,3204.9,45.0159]
[1737628686490,0.00467588,3205.3,3204.9,45.0159]
[1737628686691,0.62432,3205.2,3205.0,0.62434]
[1737628687293,0.62435,3205.0,3204.9,45.0159]
[1737628687690,0.62435,3205.0,3204.9,3.7011]
[1737628687892,0.62435,3205.0,3204.9,3.2078]
[1737628688198,4.68666888,3205.0,3204.9,3.2078]
[1737628689090,0.62441,3204.7,3204.6,0.00312222]
[1737628689489,4.74314483,3204.7,3204.6,0.00312222]
[1737628692899,6.29014483,3204.7,3204.6,2.22e-06]
[1737628693399,0.62453,3204.1,3204.0,3.2078]
[1737628694399,3.2078,3204.1,3203.1,3.2078]
[1737628694701,0.6247,3203.2,3203.1,3.2078]
[1737628694896,0.6247,3203.2,3203.1,44.0078]
[1737628695100,0.6247,3203.2,3202.1,2.46532287]
[1737628695101,2.46532287,3203.2,3202.1,3.2078]
[1737628695396,2.46532287,3202.9,3202.1,3.2078]
[1737628695703,0.62489,3202.3,3202.1,3.2078]
[1737628695897,4.02725287,3202.9,3202.1,3.2078]
[1737628695898,0.6249,3202.2,3202.1,3.2078]
[1737628696097,0.62496,3201.9,3201.8,40.8]
[1737628696402,0.62496,3201.9,3201.3,3.2078]
[1737628696403,0.62502,3201.6,3201.3,3.2078]
[1737628696713,3.2078,3201.9,3201.2,1.0123]
[1737628696999,2.46532287,3201.4,3201.0,4.8765221]
[1737628697198,0.62511,3201.1,3201.0,4.8765221]
[1737628698000,3.09043287,3201.1,3201.0,4.8765221]
[1737628698604,10.32395074,3201.1,3201.0,4.8765221]
[1737628699503,10.32395074,3201.1,3200.3,3.2078]
[1737628699504,3.2078,3201.1,3200.3,5.67312287]
[1737628699699,0.62516,3200.9,3200.3,5.67312287]
[1737628699900,0.62516,3200.9,3200.3,3.2078]
[1737628700101,0.62515,3200.9,3200.3,3.83306]
[1737628700301,5.67312287,3201.1,3200.3,3.2078]
[1737628700499,0.6252,3200.7,3200.3,3.2078]
[1737628700695,5.67312287,3201.1,3200.3,3.2078]
[1737628700905,0.62526,3200.4,3200.3,3.2078]
[1737628701098,2.46532287,3200.8,3200.3,3.2078]
[1737628701294,0.6252,3200.7,3200.3,3.2078]
[1737628701509,0.62522,3200.6,3200.3,3.2078]
[1737628701694,4.0201583,3200.7,3200.3,3.2078]
[1737628701899,1.547,3201.0,3200.3,3.2078]
[1737628702401,2.17215,3201.0,3200.3,3.2078]
[1737628702599,2.17215,3201.0,3200.3,3.83307]
[1737628702795,1.547,3201.0,3200.3,3.2078]
[1737628702996,1.547,3201.0,3200.4,0.62526]
[1737628703200,3.2078,3201.1,3200.3,3.2078]
[1737628703504,3.2078,3201.1,3200.6,0.62521]
[1737628703711,3.83293,3201.1,3200.3,3.2078]
[1737628703895,3.2078,3201.1,3200.3,3.2078]
[1737628704299,4.01332287,3201.4,3200.9,0.62515]
[1737628704497,1.548,3201.4,3201.0,40.8]
[1737628704808,4.01332287,3201.4,3201.0,40.8]
[1737628705011,0.62511,3201.2,3201.0,40.8]
[1737628705308,3.83286,3201.5,3201.0,40.8]
[1737628705502,3.2078,3201.5,3201.0,40.8]
[1737628705701,4.77444119,3201.4,3201.0,40.8]
[1737628705908,0.62501,3201.7,3201.2,3.83289]
[1737628706100,0.62497,3201.9,3201.3,0.62507]
[1737628706409,0.62499,3201.8,3201.3,0.62507]
[1737628706608,0.62502,3201.7,3201.2,3.2078]
[1737628706803,0.62499,3201.8,3201.2,3.83289]
[1737628707006,5.67312287,3202.0,3201.2,3.83289]
[1737628707202,0.62501,3201.7,3201.2,3.8329]
[1737628707606,0.62499,3201.8,3201.3,0.62508]
[1737628707801,0.62499,3201.8,3201.2,3.83289]
[1737628708599,5.67312287,3202.0,3201.2,3.83289]
[1737628708798,5.67312287,3202.0,3201.2,3.8329]
[1737628708799,0.62502,3201.7,3201.2,3.8329]
[1737628709111,4.11172395,3201.9,3201.2,3.2078]
[1737628709316,0.62503,3201.6,3201.2,3.2078]
[1737628709606,0.62506,3201.5,3201.2,3.2078]
[1737628709811,2.46532287,3201.7,3201.2,3.2078]
[1737628710114,4.67278633,3201.6,3201.2,3.2078]
[1737628710410,0.62504,3201.6,3201.2,3.2078]
[1737628710599,2.46532287,3201.7,3201.2,3.2078]
[1737628710804,0.62504,3201.6,3201.2,3.2078]
[1737628711007,4.77847482,3201.6,3201.2,3.2078]
[1737628711607,0.62505,3201.5,3201.2,3.2078]
[1737628712215,0.62507,3201.4,3201.2,3.2078]
[1737628712607,0.62508,3201.3,3201.2,3.2078]
[1737628713110,0.62508,3201.4,3201.2,3.2078]
[1737628713504,0.62498,3201.9,3201.2,3.2078]
[1737628713811,0.62498,3201.9,3201.4,0.62505]
[1737628713812,0.62497,3201.9,3201.4,0.62505]
[1737628714012,0.62499,3201.8,3201.4,0.62505]
[1737628714911,0.62499,3201.8,3201.5,0.62504]
[1737628715909,0.62499,3201.8,3201.2,3.2078]
[1737628715910,0.62495,3202.0,3201.8,0.62499]
[1737628716216,2.46532287,3202.4,3201.9,0.62496]
[1737628716407,3.2078,3202.5,3202.1,0.62493]
[1737628716602,0.62489,3202.3,3202.0,3.83273]
[1737628716809,0.62488,3202.4,3202.1,0.62493]
[1737628717015,0.6249,3202.3,3202.0,3.83274]
[1737628717316,0.62487,3202.4,3202.1,0.62493]
[1737628717715,0.6249,3202.3,3202.1,40.8]
[1737628717917,3.2078,3202.5,3202.1,40.8]
[1737628718213,0.62959326,3202.2,3202.1,40.8]
[1737628718413,0.00468326,3202.2,3202.1,40.8]
[1737628719116,0.62959326,3202.2,3202.1,40.8]
[1737628719519,0.00468326,3202.2,3202.1,41.42493]
[1737628719721,0.62959326,3202.2,3202.1,40.8]
[1737628720319,0.00468326,3202.2,3202.1,41.42493]
[1737628720916,0.62959326,3202.2,3202.1,40.8]
[1737628721417,0.00468326,3202.2,3202.1,40.8]
[1737628721623,0.62493,3202.1,3202.0,3.2078]
[1737628722219,0.00468326,3202.2,3201.7,0.4962]
[1737628722520,0.62497,3201.9,3201.7,0.4962]
[1737628722716,4.14778682,3202.1,3201.6,3.2078]
[1737628723019,0.62501,3201.7,3201.6,3.2078]
[1737628723219,0.625,3201.8,3201.6,3.83282]
[1737628723615,0.62501,3201.7,3201.6,3.2078]
[1737628723814,0.625,3201.8,3201.6,3.83282]
[1737628724117,0.62495,3202.0,3201.8,0.62498]
[1737628724314,0.62495,3202.0,3201.8,0.62497]
[1737628724621,0.00468326,3202.2,3201.6,3.2078]
[1737628724823,0.62495,3202.0,3201.8,0.62498]
[1737628725012,0.62495,3202.0,3201.8,0.62497]
[1737628725208,0.00468326,3202.2,3201.6,3.2078]
[1737628725616,0.62495,3202.0,3201.8,0.62498]
[1737628725818,0.62493,3202.1,3201.9,0.62497]
[1737628726217,0.62495,3202.0,3201.8,0.62498]
[1737628726419,0.62495,3202.0,3201.7,0.625]
[1737628726624,0.62497,3201.9,3201.7,0.625]
[1737628726922,0.62496,3202.0,3201.7,0.625]
[1737628727322,0.62496,3202.0,3201.8,0.62498]
[1737628728117,0.00468326,3202.2,3201.6,3.2078]
[1737628728314,0.62498,3201.9,3201.7,0.62499]
[1737628728624,0.62496,3202.0,3201.8,0.62499]
[1737628729021,0.62495,3202.0,3201.8,0.62497]
[1737628729520,0.62498,3201.9,3201.7,0.62499]
[1737628730013,0.625,3201.7,3201.6,3.2078]
[1737628730216,3.09032287,3201.7,3201.6,3.2078]
[1737628730613,3.57032287,3201.7,3201.6,3.2078]
[1737628732829,1.105,3201.7,3201.6,3.2078]
[1737628736731,3.57032287,3201.7,3201.6,3.2078]
[1737628737524,1.105,3201.7,3201.6,3.2078]
[1737628739024,0.48,3201.7,3201.6,3.2078]
[1737628739331,0.62497,3201.9,3201.7,0.625]
[1737628739532,0.62497,3201.9,3201.6,3.2078]
[1737628739733,2.46532287,3202.0,3201.6,3.2078]
[1737628740228,0.62499,3201.8,3201.6,3.83282]
[1737628740435,0.62499,3201.8,3201.6,3.2078]
[1737628740734,0.62499,3201.8,3201.6,3.83282]
[1737628740934,0.62499,3201.8,3201.6,3.2078]
[1737628741131,0.62497,3201.9,3201.6,3.2078]
[1737628741437,0.625,3201.7,3201.6,3.2078]
[1737628744630,0.625,3201.8,3201.6,3.83282]
[1737628744828,0.00468326,3202.2,3201.6,3.2078]
[1737628745032,0.62494,3202.1,3201.9,0.62496]
[1737628745531,0.62959326,3202.2,3202.0,0.62494]
[1737628745733,0.00468326,3202.2,3201.6,3.2078]
[1737628745932,0.00468326,3202.2,3201.9,0.62496]
[1737628746239,0.62493,3202.1,3201.8,0.62497]
[1737628746540,0.62493,3202.1,3202.0,40.8]
[1737628746728,0.00468326,3202.2,3202.0,40.8]
[1737628747337,0.62493,3202.1,3202.0,44.0078]
[1737628749645,0.00468326,3202.2,3202.0,44.0078]
[1737628749849,0.62493,3202.1,3202.0,44.0078]
[1737628750447,0.00468326,3202.2,3202.0,44.0078]
[1737628750639,0.00468326,3202.2,3202.0,44.63273]
[1737628751345,0.00468326,3202.2,3202.0,44.0078]
[1737628751545,0.62960326,3202.2,3202.0,44.0078]
[1737628751740,0.62493,3202.1,3202.0,44.0078]
[1737628754648,0.62493,3202.1,3202.0,3.2078]
[1737628754841,1.12833,3202.1,3202.0,3.2078]
[1737628755742,5.10669758,3202.1,3202.0,3.2078]
[1737628755942,0.62501,3201.7,3201.0,1.56285]
[1737628756143,0.62501,3201.7,3201.5,0.62503]
[1737628756348,0.62501,3201.7,3201.4,3.2078]
[1737628756349,2.06573,3202.1,3201.4,3.83285]
[1737628756544,0.62504,3201.5,3201.4,3.83285]
[1737628756751,0.62501,3201.7,3201.4,3.2078]
[1737628757149,0.5034,3202.1,3201.5,0.4765]
[1737628757349,0.62497,3201.9,3201.8,3.2078]
[1737628758640,0.62497,3201.9,3201.8,44.0078]
[1737628758844,0.5034,3202.1,3201.8,44.63279]
[1737628758845,0.62496,3202.0,3201.8,44.63279]
[1737628759048,0.5034,3202.1,3201.8,44.0078]
[1737628759244,1.12833,3202.1,3201.9,0.62497]
[1737628759445,0.62493,3202.1,3201.8,44.0078]
[1737628759641,0.00468326,3202.2,3201.8,44.0078]
[1737628759840,0.62494,3202.1,3201.9,0.62497]
[1737628760661,0.62960326,3202.2,3201.9,0.62497]
[1737628760957,0.62495,3202.1,3201.8,44.63278]
[1737628761543,0.00468326,3202.2,3201.8,44.0078]
[1737628761849,0.48538326,3202.2,3201.8,44.63278]
[1737628762050,0.62494,3202.1,3201.8,44.63278]
[1737628763843,1.11030326,3202.2,3201.9,0.62496]
[1737628764149,0.62493,3202.1,3201.8,44.0078]
[1737628764345,0.62496,3202.0,3201.8,44.0078]
[1737628764748,0.62496,3202.0,3201.8,44.63278]
[1737628764946,0.62496,3202.0,3201.8,44.0078]
[1737628765453,0.62493,3202.1,3201.8,44.63278]
[1737628765650,0.48538326,3202.2,3201.8,44.63278]
[1737628765852,0.48538326,3202.2,3201.8,44.0078]
[1737628765853,0.62495,3202.0,3201.8,44.0078]
[1737628766354,0.48538326,3202.2,3201.8,44.0078]
[1737628766751,0.62495,3202.0,3201.8,44.63278]
[1737628767054,0.48538326,3202.2,3201.8,44.63278]
[1737628767254,0.62495,3202.0,3201.8,44.63278]
[1737628767860,0.48538326,3202.2,3201.8,44.63278]
[1737628768160,0.62496,3201.9,3201.8,44.0078]
[1737628768357,0.62496,3201.9,3201.8,44.63272]